bitfinex/quotes_BTCUSD_20240607
["timestamp","ask_amount","ask_price","bid_price","bid_amount"]
[1717766620125,0.140147,71354.0,71350.0,0.17169107]
[1717766620278,0.140147,71354.0,71350.0,0.17369107]
[1717766620486,0.19,71359.0,71351.0,0.00663088]
[1717766620487,0.140148,71353.0,71351.0,0.00663088]
[1717766621139,0.14015,71352.0,71351.0,0.00663088]
[1717766621358,0.280233,71370.0,71351.0,0.17174088]
[1717766621359,0.19,71367.0,71351.0,0.17174088]
[1717766621512,0.19,71367.0,71354.0,0.0757]
[1717766621719,0.19,71367.0,71356.0,0.1624]
[1717766621720,0.140135,71360.0,71356.0,0.1624]
[1717766621924,0.140136,71360.0,71357.0,0.00670309]
[1717766622173,0.19,71367.0,71357.0,0.00670309]
[1717766622383,0.2,71367.0,71357.0,0.00670309]
[1717766622558,0.19,71367.0,71358.0,0.14540099]
[1717766622757,0.140132,71362.0,71359.0,0.14540099]
[1717766622959,0.140132,71362.0,71360.0,0.14540099]
[1717766623194,0.140132,71362.0,71359.0,0.00668763]
[1717766623195,0.19,71367.0,71361.0,0.14540099]
[1717766623341,0.140125,71365.0,71362.0,0.14540099]
[1717766623538,0.140125,71365.0,71363.0,0.1520793]
[1717766623781,0.140125,71365.0,71364.0,0.14540099]
[1717766624214,0.140125,71365.0,71364.0,0.15207697]
[1717766625407,0.140125,71365.0,71364.0,0.15206774]
[1717766626383,0.140125,71365.0,71364.0,0.15306774]
[1717766626592,0.140125,71365.0,71364.0,0.15506774]
[1717766626808,0.140125,71365.0,71364.0,0.15306774]
[1717766626977,0.140125,71365.0,71364.0,0.15206774]
[1717766627200,0.140125,71365.0,71364.0,0.15406774]
[1717766627499,0.140125,71365.0,71364.0,0.15306774]
[1717766627893,0.140125,71365.0,71364.0,0.39296774]
[1717766628096,0.41713818,71369.0,71364.0,0.53638667]
[1717766628097,0.01713818,71369.0,71364.0,0.53638667]
[1717766628299,0.21,71383.0,71365.0,0.14441893]
[1717766628472,0.21,71383.0,71366.0,0.30679176]
[1717766628473,0.19,71383.0,71366.0,0.30679176]
[1717766628674,0.140107,71374.0,71369.0,0.02069313]
[1717766628876,0.140107,71374.0,71370.0,0.31732567]
[1717766629075,0.140107,71374.0,71371.0,0.14539176]
[1717766629285,0.21,71383.0,71372.0,0.15219105]
[1717766629286,0.1401,71378.0,71372.0,0.15219105]
[1717766629492,0.19,71383.0,71373.0,0.14539176]
[1717766629692,0.140106,71375.0,71373.0,0.14539176]
[1717766629929,0.140106,71375.0,71374.0,0.15218639]
[1717766631083,0.140099,71378.0,71375.0,0.2457]
[1717766631280,0.140093,71381.0,71376.0,0.15212967]
[1717766631490,0.140095,71380.0,71377.0,0.14539176]
[1717766631714,0.140095,71380.0,71378.0,0.15212501]
[1717766631957,0.140095,71380.0,71379.0,0.14539176]
[1717766632535,0.140095,71380.0,71379.0,0.15212268]
[1717766633788,0.140095,71380.0,71379.0,0.15312268]
[1717766635195,0.140095,71380.0,71379.0,0.15512268]
[1717766635401,0.140955,71380.0,71379.0,0.15512268]
[1717766639701,0.140955,71380.0,71379.0,0.15509483]
[1717766640337,0.150955,71380.0,71379.0,0.15509483]
[1717766640541,0.140955,71380.0,71379.0,0.15509483]
[1717766640893,0.140955,71380.0,71379.0,0.15509284]
[1717766641873,0.00086,71380.0,71379.0,0.15509284]
[1717766642071,0.00086,71380.0,71379.0,0.15780412]
[1717766646823,0.00086,71380.0,71379.0,0.15680412]
[1717766647077,0.00086,71380.0,71379.0,0.15480412]
[1717766647274,0.00086,71380.0,71379.0,0.15265757]
[1717766647474,0.00086,71380.0,71379.0,0.15465757]
[1717766648894,0.00086,71380.0,71379.0,0.15465575]
[1717766650338,0.00086,71380.0,71379.0,0.15781963]
[1717766654533,0.00086,71380.0,71379.0,0.23671963]
[1717766656800,0.00086,71380.0,71379.0,0.76463556]
[1717766657009,0.00086,71380.0,71379.0,0.78534988]
[1717766657211,0.00086,71380.0,71379.0,0.98267572]
[1717766657793,0.00086,71380.0,71379.0,0.89477572]
[1717766658202,0.00086,71380.0,71379.0,0.89177572]
[1717766658617,0.00086,71380.0,71379.0,0.37585979]
[1717766658780,0.22016,71380.0,71379.0,0.15781963]
[1717766659002,0.36362024,71380.0,71379.0,0.15781963]
[1717766659218,0.98181524,71380.0,71379.0,0.15681963]
[1717766659416,0.98181524,71380.0,71379.0,0.1453601]
[1717766659613,0.98181524,71380.0,71379.0,0.1463601]
[1717766660203,0.98181524,71380.0,71379.0,0.1453601]
[1717766660375,1.26200524,71380.0,71379.0,0.1453601]
[1717766660613,1.26200524,71380.0,71363.0,0.02070223]
[1717766660614,0.140116,71370.0,71363.0,0.02070223]
[1717766660821,0.0679,71368.0,71363.0,0.02070223]
[1717766661023,0.19,71371.0,71370.0,99.548884]
[1717766661229,0.2579,71371.0,71370.0,99.548884]
[1717766661407,0.2579,71371.0,71370.0,99.55526882]
[1717766662047,0.19,71371.0,71370.0,99.55526882]
[1717766662523,0.330112,71371.0,71370.0,99.55826882]
[1717766662778,0.330112,71371.0,71370.0,0.00938482]
[1717766662945,0.350112,71371.0,71370.0,0.00938482]
[1717766663079,0.350112,71371.0,71370.0,0.003]
[1717766663895,1.00715593,71371.0,71370.0,0.003]
[1717766664125,0.229638,71359.0,71354.0,0.02070223]
[1717766664331,0.219638,71359.0,71355.0,0.00642845]
[1717766664536,0.160138,71358.0,71350.0,0.02164823]
[1717766664712,0.160138,71358.0,71351.0,0.00643778]
[1717766665139,0.140141,71357.0,71351.0,0.00643778]
[1717766665346,0.7248,71352.0,71351.0,0.00643778]
[1717766665540,0.7248,71352.0,71350.0,0.000946]
[1717766665541,0.160152,71351.0,71350.0,0.000946]
[1717766666375,0.160152,71351.0,71344.0,0.000946]
[1717766666376,0.160163,71345.0,71344.0,0.000946]
[1717766667009,0.44049,71345.0,71344.0,0.000946]
[1717766667220,0.56969,71345.0,71344.0,0.000946]
[1717766669212,0.57169,71345.0,71344.0,0.001946]
[1717766669729,0.56969,71345.0,71344.0,0.001946]
[1717766669934,0.57369,71345.0,71344.0,0.001946]
[1717766670148,0.56969,71345.0,71344.0,0.000946]
[1717766671175,0.55969,71345.0,71344.0,0.000946]
[1717766671374,0.217463,71345.0,71344.0,0.000946]
[1717766671599,0.143163,71345.0,71344.0,0.000946]
[1717766672020,0.140163,71345.0,71344.0,0.00727964]
[1717766672231,0.141163,71345.0,71344.0,0.14637477]
[1717766672529,0.143163,71345.0,71344.0,0.15270841]
[1717766672732,0.140163,71345.0,71344.0,0.15270841]
[1717766672985,0.140157,71349.0,71344.0,0.15270841]
[1717766673135,0.140159,71348.0,71345.0,0.14542877]
[1717766673312,0.140152,71351.0,71346.0,0.08943783]
[1717766673512,0.140154,71350.0,71347.0,0.14542126]
[1717766673766,0.19,71352.0,71348.0,0.00941381]
[1717766673912,0.140157,71349.0,71348.0,0.00941381]
[1717766674136,0.140163,71345.0,71344.0,0.001946]
[1717766674964,0.140163,71345.0,71344.0,0.003946]
[1717766675171,0.140163,71345.0,71344.0,0.002946]
[1717766675379,0.140163,71345.0,71344.0,0.000946]
[1717766675585,0.140163,71345.0,71344.0,0.002946]
[1717766675881,0.59,71352.0,71344.0,0.002946]
[1717766676100,0.59,71352.0,71345.0,0.2439]
[1717766676101,0.140158,71348.0,71345.0,0.2439]
[1717766676309,0.140155,71350.0,71345.0,0.2439]
[1717766676521,0.140155,71350.0,71346.0,0.00629879]
[1717766676851,0.140156,71349.0,71346.0,0.00629879]
[1717766677053,0.140156,71349.0,71346.0,0.00944468]
[1717766677466,0.140156,71349.0,71347.0,0.14542099]
[1717766677912,0.59,71352.0,71345.0,0.23150061]
[1717766677913,0.19,71352.0,71345.0,0.23150061]
[1717766678096,0.19,71352.0,71346.0,0.14441893]
[1717766679434,0.19,71352.0,71346.0,0.14641893]
[1717766679643,0.19,71352.0,71346.0,0.002]
[1717766679861,0.02,71351.0,71346.0,0.002]
[1717766680073,0.4,71347.0,71346.0,0.002]
[1717766680281,0.54016,71347.0,71346.0,0.002]
[1717766681366,0.4,71347.0,71346.0,0.002]
[1717766682126,0.4,71347.0,71346.0,0.003]
[1717766682540,0.4,71347.0,71344.0,0.000946]
[1717766682740,0.4,71347.0,71346.0,0.002]
[1717766682941,0.4,71347.0,71346.0,0.003]
[1717766683399,0.140156,71349.0,71346.0,0.002]
[1717766683568,0.19,71352.0,71347.0,0.1631]
[1717766684288,0.33015,71352.0,71347.0,0.1631]
[1717766684927,0.34699991,71352.0,71347.0,0.1631]
[1717766685656,0.20684991,71352.0,71347.0,0.1631]
[1717766686246,0.20684991,71352.0,71347.0,0.1431]
[1717766687273,0.140154,71350.0,71347.0,0.1431]
[1717766689496,0.140154,71350.0,71348.0,0.14541924]
[1717766690074,0.140154,71350.0,71349.0,0.14541924]
[1717766690277,0.140154,71350.0,71349.0,0.14542097]
[1717766690480,0.140154,71350.0,71346.0,0.154]
[1717766690680,0.140154,71350.0,71347.0,0.14542355]
[1717766690924,0.140154,71350.0,71348.0,0.14542355]
[1717766691283,0.140154,71350.0,71346.0,0.154]
[1717766691284,0.141154,71350.0,71346.0,0.154]
[1717766691450,0.140154,71350.0,71347.0,0.14542178]
[1717766691670,0.140154,71350.0,71348.0,0.14542178]
[1717766691863,0.140154,71350.0,71346.0,0.154]
[1717766692095,0.140156,71349.0,71347.0,0.14542257]
[1717766692296,0.20684991,71352.0,71347.0,0.14542257]
[1717766692297,0.01684991,71352.0,71349.0,0.1542]
[1717766692472,0.001,71350.0,71349.0,0.1542]
[1717766692751,0.001,71350.0,71349.0,0.44402691]
[1717766692920,0.330134,71360.0,71351.0,0.0816]
[1717766693182,0.140134,71360.0,71352.0,0.29881893]
[1717766693370,0.140134,71360.0,71353.0,0.14540798]
[1717766693588,0.140134,71360.0,71354.0,0.14540798]
[1717766693826,0.140134,71360.0,71355.0,0.14540798]
[1717766694042,0.140134,71360.0,71356.0,0.14540798]
[1717766694242,0.140134,71360.0,71357.0,0.14540798]
[1717766694462,0.140137,71359.0,71358.0,0.14540798]
[1717766696052,0.41685454,71364.0,71358.0,0.14540798]
[1717766696264,0.01685454,71364.0,71359.0,0.53542691]
[1717766696505,0.01685454,71364.0,71360.0,0.14540798]
[1717766696675,0.19,71368.0,71360.0,0.28982691]
[1717766696897,0.20663252,71368.0,71361.0,0.28982691]
[1717766697058,0.140121,71367.0,71362.0,0.14540798]
[1717766697257,0.140122,71366.0,71363.0,0.28982691]
[1717766697467,0.140122,71366.0,71364.0,0.14539038]
[1717766697662,0.140122,71366.0,71365.0,0.14539038]
[1717766698262,0.20663252,71368.0,71365.0,0.14538923]
[1717766698442,0.20663252,71368.0,71366.0,0.14538923]
[1717766698640,0.20663252,71368.0,71367.0,0.14538923]
[1717766700357,0.34675052,71368.0,71367.0,0.14538923]
[1717766700508,0.34675052,71368.0,71367.0,0.14738923]
[1717766700710,0.34675052,71368.0,71367.0,0.14838923]
[1717766700928,0.34675052,71368.0,71367.0,0.14638923]
[1717766701395,0.01663252,71368.0,71367.0,0.14838923]
[1717766701678,0.00086,71371.0,71367.0,0.14838923]
[1717766701855,0.00086,71371.0,71368.0,0.14538923]
[1717766702246,0.00086,71371.0,71360.0,0.140134]
[1717766702442,0.00086,71371.0,71361.0,0.14441893]
[1717766702647,0.01786173,71371.0,71362.0,0.14537753]
[1717766702842,0.01786173,71371.0,71363.0,0.28979646]
[1717766703074,0.01786173,71371.0,71367.0,0.001]
[1717766703295,0.01786173,71371.0,71368.0,0.14537753]
[1717766703633,0.01786173,71371.0,71369.0,0.14537753]
[1717766703835,0.01786173,71371.0,71363.0,0.14441893]
[1717766704035,0.01786173,71371.0,71367.0,0.002]
[1717766704260,0.00086,71368.0,71367.0,0.002]
[1717766704544,0.00086,71368.0,71367.0,0.14537252]
[1717766704966,0.00086,71368.0,71366.0,0.14537252]
[1717766705146,0.00086,71368.0,71367.0,0.14537252]
[1717766705342,0.00086,71368.0,71366.0,0.14537252]
[1717766705546,0.00086,71368.0,71367.0,0.14537252]
[1717766705929,0.00086,71368.0,71366.0,0.14537252]
[1717766706803,0.00086,71368.0,71366.0,0.14637252]
[1717766707225,0.00086,71368.0,71366.0,0.001]
[1717766707424,0.00086,71368.0,71367.0,0.002]
[1717766707538,0.00086,71368.0,71366.0,0.001]
[1717766708589,0.00086,71368.0,71366.0,0.003]
[1717766708790,0.00086,71368.0,71367.0,0.14537517]
[1717766709844,0.00086,71368.0,71366.0,0.002]
[1717766710049,0.00086,71368.0,71367.0,0.001]
[1717766711022,0.00086,71368.0,71367.0,0.003]
[1717766711409,0.00086,71368.0,71367.0,0.37369716]
[1717766711636,0.00086,71368.0,71367.0,0.66521716]
[1717766711860,0.00086,71368.0,71367.0,0.68521716]
[1717766712317,0.00086,71368.0,71367.0,0.66521716]
[1717766712858,0.00086,71368.0,71367.0,0.66621716]
[1717766713673,0.00086,71368.0,71367.0,0.66620104]
[1717766716781,0.00086,71368.0,71367.0,0.14836211]
[1717766716985,0.00086,71368.0,71367.0,0.1483664]
[1717766719833,0.00086,71368.0,71367.0,0.3006664]
[1717766725946,0.00086,71368.0,71367.0,0.60520533]
[1717766726125,0.00086,71368.0,71367.0,0.68030533]
[1717766726330,0.00086,71368.0,71367.0,0.70102975]
[1717766726708,0.00086,71368.0,71367.0,0.68030533]
[1717766727486,0.00086,71368.0,71367.0,0.66030533]
[1717766728894,0.00086,71368.0,71367.0,0.68030533]
[1717766729098,0.00086,71368.0,71367.0,0.66030533]
[1717766732319,0.00086,71368.0,71367.0,0.52018533]
[1717766732525,0.00086,71368.0,71367.0,0.1483664]
[1717766734387,0.00086,71368.0,71367.0,0.3920664]
[1717766734796,0.00086,71368.0,71367.0,0.14836806]
[1717766735196,0.00086,71368.0,71367.0,0.15136806]
[1717766736277,0.217478,71368.0,71367.0,0.15136806]
[1717766737947,0.217478,71368.0,71367.0,0.14936806]
[1717766738203,0.217478,71368.0,71367.0,0.15036806]
[1717766738392,0.217478,71368.0,71367.0,0.15038246]
[1717766738616,0.217478,71368.0,71367.0,0.15138246]
[1717766739174,0.217478,71368.0,71367.0,0.15038246]
[1717766739587,0.407478,71368.0,71367.0,0.15138246]
[1717766739777,0.492778,71368.0,71367.0,0.15138246]
[1717766741610,0.492778,71368.0,71367.0,0.14838246]
[1717766741805,0.492778,71368.0,71367.0,0.14938246]
[1717766742255,0.492778,71368.0,71367.0,0.15138246]
[1717766742475,0.492778,71368.0,71367.0,0.14838246]
[1717766743596,0.00086,71368.0,71367.0,0.38838246]
[1717766745057,0.00086,71368.0,71367.0,0.55280139]
[1717766745584,0.00086,71368.0,71367.0,0.59406155]
[1717766746331,0.00086,71368.0,71367.0,0.73418155]
[1717766746548,0.00086,71368.0,71367.0,1.17416239]
[1717766746735,0.00086,71368.0,71367.0,1.47203236]
[1717766746948,0.00086,71368.0,71367.0,1.47403236]
[1717766747140,0.00086,71368.0,71367.0,1.59781286]
[1717766747341,0.00086,71368.0,71367.0,1.47203236]
[1717766747897,0.00086,71368.0,71367.0,1.84188443]
[1717766748076,0.00086,71368.0,71367.0,1.56064343]
[1717766748406,0.00086,71368.0,71367.0,1.47303236]
[1717766748626,0.00086,71368.0,71367.0,1.47403236]
[1717766749024,0.00086,71368.0,71367.0,1.47303236]
[1717766749145,0.00086,71368.0,71367.0,1.75327336]
[1717766749343,0.00086,71368.0,71367.0,1.87772231]
[1717766749740,0.00086,71368.0,71367.0,1.87572231]
[1717766749958,0.00086,71368.0,71367.0,1.67985234]
[1717766750167,0.00086,71368.0,71367.0,1.87772231]
[1717766750373,0.00086,71368.0,71367.0,1.55640339]
[1717766750737,0.00086,71371.0,71370.0,0.22]
[1717766750935,0.00086,71371.0,71370.0,1.26414439]
[1717766751351,0.00086,71371.0,71370.0,1.64437339]
[1717766751554,0.00086,71371.0,71370.0,1.66737339]
[1717766751770,0.00086,71371.0,71370.0,1.94760239]
[1717766751980,0.224,71374.0,71373.0,1.354545]
[1717766751981,0.05826,71374.0,71373.0,1.354545]
[1717766752180,0.05826,71374.0,71373.0,1.76734639]
[1717766753038,0.00086,71380.0,71373.0,1.76734639]
[1717766753039,0.00086,71380.0,71379.0,0.840291]
[1717766753273,0.00086,71380.0,71379.0,1.87379042]
[1717766753498,0.00086,71380.0,71379.0,2.06065814]
[1717766753710,0.00086,71380.0,71379.0,1.91527568]
[1717766753895,0.00086,71380.0,71379.0,2.05120411]
[1717766754456,0.00086,71384.0,71383.0,1.120445]
[1717766754676,0.00086,71399.0,71392.0,0.394771]
[1717766754876,0.00086,71399.0,71392.0,0.81141817]
[1717766755080,0.00086,71399.0,71392.0,2.12015335]
[1717766755431,0.00086,71399.0,71392.0,1.65002962]
[1717766755643,0.00086,71399.0,71392.0,1.80880673]
[1717766755865,0.00086,71399.0,71392.0,1.56778211]
[1717766756079,0.00086,71399.0,71392.0,1.2066729]
[1717766756286,0.00086,71399.0,71392.0,1.16563911]
[1717766756457,0.00086,71399.0,71392.0,1.16463911]
[1717766756833,0.00086,71399.0,71392.0,1.16462255]
[1717766757074,0.00086,71399.0,71392.0,1.20565634]
[1717766757260,0.00086,71399.0,71392.0,1.16462255]
[1717766757453,0.00086,71399.0,71392.0,1.40561998]
[1717766757640,0.00086,71399.0,71392.0,1.68576298]
[1717766757846,0.00086,71399.0,71392.0,1.80876298]
[1717766758067,0.00086,71399.0,71398.0,0.540178]
[1717766758268,0.00086,71399.0,71398.0,1.08758655]
[1717766759412,0.00086,71399.0,71398.0,1.08858655]
[1717766759754,0.00086,71399.0,71398.0,1.08758655]
[1717766759956,0.00086,71399.0,71398.0,1.28758655]
[1717766760154,0.00086,71399.0,71398.0,1.08858655]
[1717766760356,0.00086,71399.0,71398.0,1.06558655]
[1717766760670,0.00086,71399.0,71398.0,1.54570555]
[1717766760878,0.00086,71399.0,71398.0,1.56870063]
[1717766761292,0.00086,71399.0,71398.0,1.67070063]
[1717766761500,0.00863,71408.0,71407.0,0.160042]
[1717766761705,0.00863,71408.0,71407.0,0.78954563]
[1717766761903,0.00863,71408.0,71407.0,1.11061452]
[1717766762217,0.00863,71408.0,71407.0,1.06962963]
[1717766763145,0.00863,71408.0,71407.0,0.61244563]
[1717766763442,0.00863,71408.0,71407.0,0.53074003]
[1717766763893,0.00863,71408.0,71407.0,0.53274003]
[1717766764127,0.00863,71408.0,71407.0,0.43274003]
[1717766764369,0.00863,71408.0,71407.0,0.28746093]
[1717766764529,0.00863,71408.0,71407.0,0.14741893]
[1717766765377,0.00863,71408.0,71407.0,0.14441893]
[1717766765779,0.00863,71408.0,71407.0,0.14741893]
[1717766766161,0.00863,71408.0,71398.0,0.3465]
[1717766766162,0.16693,71408.0,71401.0,0.140052]
[1717766766317,0.16693,71408.0,71402.0,0.28971127]
[1717766766502,0.16693,71408.0,71407.0,0.001]
[1717766766744,0.16693,71408.0,71407.0,0.003]
[1717766766952,0.16693,71408.0,71402.0,0.14441893]
[1717766768176,0.00863,71408.0,71407.0,0.14441893]
[1717766768378,0.00863,71408.0,71407.0,0.51886093]
[1717766768918,0.00863,71408.0,71407.0,0.66415307]
[1717766769289,0.00863,71408.0,71407.0,0.68415307]
[1717766769505,0.00863,71408.0,71407.0,1.34432107]
[1717766769914,0.00863,71408.0,71407.0,1.34532107]
[1717766770127,0.00863,71408.0,71407.0,1.06523707]
[1717766770332,0.00863,71408.0,71407.0,1.04523707]
[1717766770586,0.00863,71408.0,71407.0,0.53075307]
[1717766770957,0.00863,71408.0,71407.0,0.53275307]
[1717766772227,0.00863,71408.0,71407.0,0.43275307]
[1717766772382,0.00863,71408.0,71407.0,0.43914407]
[1717766772723,0.00863,71408.0,71407.0,0.441228]
[1717766772837,0.00863,71408.0,71407.0,0.442228]
[1717766773662,0.00863,71408.0,71407.0,0.440228]
[1717766773868,0.00863,71408.0,71407.0,0.439228]
[1717766774066,0.08883,71408.0,71407.0,0.15776707]
[1717766774389,0.08883,71408.0,71407.0,0.15576707]
[1717766774586,0.08883,71408.0,71407.0,0.15776707]
[1717766774993,0.08883,71408.0,71407.0,0.15576707]
[1717766775284,0.08883,71408.0,71407.0,0.15776707]
[1717766775606,0.08883,71408.0,71407.0,0.15576707]
[1717766776087,0.10883,71408.0,71407.0,0.15576707]
[1717766776261,0.41197,71408.0,71407.0,0.01048111]
[1717766776396,0.41197,71408.0,71407.0,0.1547946]
[1717766776605,0.41197,71408.0,71407.0,0.14531349]
[1717766776841,0.41197,71408.0,71407.0,0.15571257]
[1717766777073,0.42839257,71408.0,71407.0,0.15571257]
[1717766777279,0.42839257,71408.0,71407.0,0.15671257]
[1717766777658,0.42839257,71408.0,71407.0,0.15771257]
[1717766777918,0.42839257,71408.0,71407.0,0.15571257]
[1717766778097,0.42339257,71408.0,71407.0,0.15571257]
[1717766778299,0.42339257,71408.0,71407.0,0.15771257]
[1717766779135,0.42339257,71408.0,71407.0,0.14831349]
[1717766780308,0.42339257,71408.0,71407.0,0.14731349]
[1717766780675,0.42339257,71408.0,71407.0,0.14831349]
[1717766781223,0.42339257,71408.0,71407.0,0.14631349]
[1717766781643,0.42339257,71408.0,71407.0,0.14831349]
[1717766785000,0.40339257,71408.0,71407.0,0.14831349]
[1717766785578,0.40339257,71408.0,71407.0,0.15461446]
[1717766785782,0.16009257,71408.0,71407.0,0.15461446]
[1717766786388,0.02005257,71408.0,71407.0,0.15461446]
[1717766786590,0.02005257,71408.0,71407.0,0.15361446]
[1717766786811,0.02005257,71408.0,71407.0,0.29803339]
[1717766787154,0.00363,71408.0,71407.0,0.60137539]
[1717766787382,0.00363,71408.0,71407.0,0.69757539]
[1717766787674,0.00363,71408.0,71407.0,0.67871636]
[1717766787890,0.00363,71408.0,71407.0,0.69971636]
[1717766788078,0.00363,71408.0,71407.0,0.70171636]
[1717766788219,0.00363,71408.0,71407.0,0.70071636]
[1717766788641,0.00363,71408.0,71407.0,0.70271636]
[1717766788836,0.00363,71408.0,71407.0,0.69871636]
[1717766789243,0.00363,71408.0,71407.0,0.67871636]
[1717766789486,0.00363,71408.0,71407.0,0.68071636]
[1717766789697,0.00363,71408.0,71407.0,0.70071636]
[1717766789861,0.00363,71408.0,71407.0,0.70171636]
[1717766790471,0.00363,71408.0,71407.0,0.72229713]
[1717766790839,0.00363,71408.0,71407.0,0.70229713]
[1717766791065,0.00363,71408.0,71407.0,0.70129713]
[1717766791271,0.00363,71408.0,71407.0,0.30117436]
[1717766791476,0.00363,71408.0,71407.0,0.30217436]
[1717766792330,0.00862,71415.0,71408.0,499.99637]
[1717766792535,0.00862,71415.0,71409.0,0.28973242]
[1717766792739,0.00862,71415.0,71410.0,0.14531349]
[1717766792937,0.00862,71415.0,71409.0,0.15380722]
[1717766792938,0.00862,71415.0,71411.0,0.14531349]
[1717766793140,0.00862,71415.0,71411.0,0.1546948]
[1717766793340,0.00862,71415.0,71412.0,0.14531349]
[1717766793519,0.00862,71415.0,71413.0,0.14531349]
[1717766793723,0.00862,71415.0,71414.0,0.14531349]
[1717766794272,0.00862,71415.0,71414.0,0.15468433]
[1717766795054,0.15882,71415.0,71414.0,0.15468433]
[1717766795266,0.15882,71415.0,71414.0,0.15568433]
[1717766795439,0.318846,71415.0,71414.0,0.15568433]
[1717766796270,0.318846,71415.0,71414.0,0.15768433]
[1717766796695,0.318846,71415.0,71414.0,0.15568433]
[1717766797075,0.318846,71415.0,71414.0,0.15768433]
[1717766797376,0.318846,71415.0,71414.0,0.15668433]
[1717766797574,0.396346,71415.0,71414.0,0.15668433]
[1717766798087,0.396346,71415.0,71414.0,0.15768433]
[1717766798509,0.376346,71415.0,71414.0,0.15568433]
[1717766798730,0.376346,71415.0,71414.0,0.15768433]
[1717766798939,0.396346,71415.0,71414.0,0.15668433]
[1717766799112,0.396346,71415.0,71414.0,0.15468433]
[1717766800814,0.376346,71415.0,71414.0,0.15468433]
[1717766801421,0.396346,71415.0,71414.0,0.15468433]
[1717766802303,0.148646,71415.0,71414.0,0.15468433]
[1717766802546,0.405646,71415.0,71414.0,0.15468433]
[1717766803899,0.385646,71415.0,71414.0,0.15467096]
[1717766805915,0.16782,71415.0,71414.0,0.15467096]
[1717766806096,0.00862,71415.0,71414.0,0.15467096]
[1717766806303,0.148646,71415.0,71414.0,0.15467096]
[1717766807091,0.00862,71415.0,71414.0,0.15467096]
[1717766808310,0.148646,71415.0,71414.0,0.15467096]
[1717766808518,0.00862,71415.0,71414.0,0.29908989]
[1717766808718,0.00862,71415.0,71414.0,0.2961264]
[1717766810007,0.00862,71415.0,71414.0,0.2981264]
[1717766811031,0.00862,71415.0,71414.0,0.2991264]
[1717766811839,0.00862,71415.0,71414.0,0.15470747]
[1717766813761,0.00862,71415.0,71414.0,0.15269994]
[1717766813958,0.00862,71415.0,71414.0,0.15169994]
[1717766814134,0.00862,71415.0,71414.0,0.29611887]
[1717766814319,0.00862,71415.0,71414.0,0.29911887]
[1717766814561,0.00862,71415.0,71414.0,0.38201887]
[1717766814763,0.00862,71415.0,71414.0,0.38001887]
[1717766814963,0.00862,71415.0,71414.0,0.38201887]
[1717766815407,0.00862,71415.0,71414.0,0.38101887]
[1717766815734,0.00862,71415.0,71414.0,0.38201887]
[1717766816480,0.00862,71415.0,71414.0,0.38201024]
[1717766819295,0.00862,71415.0,71414.0,0.69513824]
[1717766819546,0.00862,71415.0,71414.0,0.97519524]
[1717766819699,0.00862,71415.0,71414.0,0.96871943]
[1717766819873,0.00862,71415.0,71414.0,0.98934684]
[1717766820299,0.00862,71415.0,71414.0,0.69880153]
[1717766820689,0.00862,71415.0,71414.0,0.69780153]
[1717766820883,0.00862,71415.0,71414.0,0.67817412]
[1717766821090,0.00862,71415.0,71414.0,0.30014612]
[1717766821330,0.00862,71415.0,71414.0,0.44017412]
[1717766821549,0.00862,71415.0,71414.0,0.43917412]
[1717766821946,0.00862,71415.0,71414.0,0.44017412]
[1717766822723,0.00862,71415.0,71414.0,0.44217412]
[1717766823384,0.00862,71415.0,71414.0,0.44217492]
[1717766824901,0.00862,71415.0,71414.0,0.44017492]
[1717766825056,0.00862,71415.0,71414.0,0.44217492]
[1717766825465,0.00862,71415.0,71414.0,0.59547492]
[1717766826057,0.00862,71415.0,71414.0,0.59278565]
[1717766829077,0.00862,71415.0,71414.0,0.44074693]
[1717766829299,0.00862,71415.0,71414.0,0.58602866]
[1717766829475,0.00862,71415.0,71414.0,0.43272866]
[1717766829671,0.00862,71415.0,71414.0,0.29270066]
[1717766830252,0.378446,71415.0,71414.0,0.14828173]
[1717766830459,0.398446,71415.0,71414.0,0.14828173]
[1717766830663,0.378446,71415.0,71414.0,0.14828173]
[1717766831044,0.588446,71415.0,71414.0,0.14728173]
[1717766831226,0.588446,71415.0,71414.0,0.14828173]
[1717766831813,0.868499,71415.0,71414.0,0.14728173]
[1717766832027,0.868499,71415.0,71414.0,0.12127563]
[1717766832028,1.07504171,71415.0,71414.0,0.12127563]
[1717766832220,1.043499,71415.0,71414.0,0.001]
[1717766832447,1.043499,71415.0,71414.0,0.003]
[1717766832623,1.043499,71415.0,71414.0,0.001]
[1717766833046,0.843499,71415.0,71414.0,0.001]
[1717766833257,1.323552,71415.0,71414.0,0.001]
[1717766833663,1.423552,71415.0,71414.0,0.001]
[1717766833984,1.223552,71415.0,71414.0,0.001]
[1717766834186,0.160038,71409.0,71408.0,0.000946]
[1717766836262,0.164038,71409.0,71408.0,0.000946]
[1717766839754,0.004,71409.0,71408.0,0.14536493]
[1717766839961,0.004,71409.0,71408.0,0.37686493]
[1717766840538,0.16174379,71415.0,71408.0,0.37686493]
[1717766840539,0.01771779,71415.0,71408.0,0.37686493]
[1717766840940,0.01771779,71415.0,71408.0,0.37786493]
[1717766841164,0.01771779,71415.0,71409.0,0.14441893]
[1717766841489,0.01771779,71415.0,71413.0,0.2315]
[1717766841490,0.00086,71415.0,71413.0,0.2315]
[1717766841775,0.00086,71415.0,71414.0,0.51594693]
[1717766841967,0.00086,71415.0,71414.0,0.68122603]
[1717766842354,0.00086,71415.0,71414.0,0.66122603]
[1717766843515,0.00086,71415.0,71414.0,0.66322603]
[1717766845609,0.00086,71415.0,71414.0,0.66422603]
[1717766845815,0.00086,71415.0,71414.0,0.36869803]
[1717766846011,0.00086,71415.0,71414.0,0.29269803]
[1717766846219,0.02086,71415.0,71414.0,0.1482791]
[1717766846380,0.140886,71415.0,71414.0,0.1482791]
[1717766846580,0.160886,71415.0,71414.0,0.003]
[1717766847158,0.350886,71415.0,71414.0,0.003]
[1717766847481,0.350886,71415.0,71414.0,0.1462924]
[1717766847760,0.330886,71415.0,71414.0,0.1452924]
[1717766847962,0.19086,71415.0,71414.0,0.1462924]